Cogmind - Beta 16 @@@ ROGUE MODE // 2025.11.01 @ 20:01:07 Player: Mozco Result: Destroyed by G-47 Trooper with Particle Gun Performance ------------- Evolutions (2) 1000 Regions Visited (8) 1600 Robots Destroyed (87) 435 Value Destroyed (2776) 2776 Prototype IDs (28) 560 Alien Tech Used (0) 0 Bonus (1399) 1399 TOTAL SCORE: 7770 Bonus ------- High Alert Combat Kills 143 Follower Combat Kills 68 Entered Garrisons 400 Used RIF Installer 500 Aligned with FarCom 300 Friendly Fire -12 Cogmind --------- Core Integrity 0/550 Matter 20/300 Energy 96/100 System Corruption 10% Temperature Cool (77) Movement Walking (120) Location -8/Garrison Parts ------- > --- POWER (1) -------- (None) > --- PROPULSION (4) --- Light Treads Advanced Treads Carbon-fiber Leg Carbon-fiber Leg > --- UTILITY (4) ------ Lightpack 2.0 Hardened Light Armor Plating > --- WEAPON (2) ------- Improved Grenade Launcher Missile Launcher > --- INVENTORY (40) --- Micro Nuclear Core Micro Nuclear Core Advanced Treads Aluminum Leg Airjet Airjet Gravmag System Cryofiber Web Improved Heat Sink Improved Heat Sink Improved Heat Sink Improved Heat Sink Active Sensor Suite Particle Charger Particle Charger Improved Particle Charger Improved Particle Charger Improved Particle Charger Reaction Control System Improved Weapon Shielding Light Armor Plating Insulated Plating Insulated Plating Relay Coupler [NC] (22) Heavy EM Pulse Gun Shock Rifle Pulse Rifle Heavy Particle Gun Advanced Beam Rifle Minigun Flak Cannon Remote Datajack Mining Laser Heavy Pick Heavy Pick Peak State ------------ > --- POWER ------------ Micro Nuclear Core > --- PROPULSION ------- Aluminum Leg Carbon-fiber Leg Carbon-fiber Leg Carbon-fiber Leg > --- UTILITY ---------- Lightpack 2.0 Hardened Light Armor Plating > --- WEAPON ----------- High-powered Field Laser Improved Grenade Launcher > --- INVENTORY -------- Micro Nuclear Core Micro Nuclear Core Micro Nuclear Core Advanced Treads Advanced Treads Aluminum Leg Airjet Cryofiber Web Improved Heat Sink Improved Heat Sink Improved Heat Sink Active Sensor Suite Particle Charger Particle Charger Particle Charger Reaction Control System Improved Weapon Shielding Light Armor Plating Insulated Plating Insulated Plating Heavy EM Pulse Gun Shock Rifle Pulse Rifle Heavy Particle Gun Heavy Particle Gun Advanced Beam Rifle AWS/Thermal EM Pulse Cannon Minigun Minigun Minigun Gauss Rifle Flak Cannon Missile Launcher Improved Datajack Mining Laser Maul [Rating: 68] Favorites ----------- Power Ion Engine Engine Ion Engine Power Core Micro Nuclear Core Propulsion Light Treads Treads Light Treads Leg Carbon-fiber Leg Wheel Compact Wheel Utility Lightpack 2.0 Device Improved Sensor Array Storage Lightpack 2.0 Protection Medium Armor Plating Weapon Beam Cannon Energy Gun Medium Laser Energy Cannon Beam Cannon Ballistic Gun High-powered Shotgun Launcher Improved Grenade Launcher Impact Weapon Maul Build | -11 -10 -10 -10 -9 -8 -8 -8 -8 ------- Run | Yrd Mat Min Exi Min Mat Gar Mat Gar Slots Evolved 4 | . . . . . 4 . . . Power . | . . . . . . . . . Propulsion 2 | . . . . . 2 . . . Utility 2 | . . . . . 2 . . . Weapon . | . . . . . . . . . Parts Attached 64 | 6 4 . 1 4 33 3 1 12 Power 7 | 1 . . . 1 4 . 1 . Engine 4 | 1 . . . 1 1 . 1 . Core 3 | . . . . . 3 . . . Reactor . | . . . . . . . . . Propulsion 21 | 2 . . . 1 14 . . 4 Treads 12 | . . . . 1 9 . . 2 Leg 7 | . . . . . 5 . . 2 Wheel 2 | 2 . . . . . . . . Hover . | . . . . . . . . . Flight . | . . . . . . . . . Utility 11 | 1 1 . . . 6 . . 3 Device 3 | . . . . . 1 . . 2 Storage 3 | 1 1 . . . 1 . . . Processor . | . . . . . . . . . Hackware . | . . . . . . . . . Protection 5 | . . . . . 4 . . 1 Artifact . | . . . . . . . . . Weapon 25 | 2 3 . 1 2 9 3 . 5 Energy Gun 10 | 1 2 . . . 5 . . 2 Energy Cannon 5 | . 1 . 1 2 . 1 . . Ballistic Gun 7 | 1 . . . . 3 1 . 2 Ballistic Cannon . | . . . . . . . . . Launcher 2 | . . . . . . 1 . 1 Special Weapon . | . . . . . . . . . Impact Weapon 1 | . . . . . 1 . . . Slashing Weapon . | . . . . . . . . . Piercing Weapon . | . . . . . . . . . Special Melee Weapon . | . . . . . . . . . Unidentified Prototypes 4 | . . . . . 4 . . . Corrupted Parts 1 | . . . . . 1 . . . System Corruption 7 | . . . . . 7 . . . Parts Lost 27 | . 3 . . 2 15 . . 7 Power 4 | . . . . 1 2 . . 1 Propulsion 13 | . . . . 1 8 . . 4 Utility 3 | . . . . . 3 . . . Weapon 7 | . 3 . . . 2 . . 2 Highest Loss Streak 6 | . 1 . . 2 4 . . 6 To Critical Strikes 2 | . . . . 1 . . . 1 Average Backups 20 | 2 5 8 12 10 24 36 36 34 Power 1 | . 1 1 3 . 1 3 3 2 Propulsion 3 | 2 4 4 4 3 2 4 4 4 Utility 5 | . . . . 1 7 13 13 14 Weapon 8 | . . 3 4 5 11 15 13 11 Tool/Special . | . . . . . . . . . Unused Backups 48 | . . . 3 . 10 1 2 32 Power 6 | . . . 3 . . . . 3 Propulsion 10 | . . . . . 4 . 1 5 Utility 17 | . . . . . 1 1 1 14 Weapon 12 | . . . . . 4 . . 8 Tool/Special 3 | . . . . . 1 . . 2 Average Slot Usage (%) 81 | . 94 100 96 97 71 81 81 74 Engine 7 | . 14 14 14 13 3 . 3 8 Core 3 | . . . . . 5 9 5 . Treads 12 | . . . . 10 22 . . 5 Leg 6 | . . . . . 2 36 36 24 Wheel 9 | . 28 28 28 17 2 . . . Device 1 | . . . . . 2 . . 4 Storage 15 | . 24 28 28 28 9 9 9 9 Protection 4 | . . . . . 6 9 9 4 Energy Gun 8 | . 21 14 11 . 7 5 . 3 Energy Cannon 7 | . 2 14 13 26 3 3 9 4 Ballistic Gun 3 | . 3 . . . 4 3 9 6 Impact Weapon 1 | . . . . . 2 4 . . Peak Build Rating 68 | 6 7 7 30 30 67 68 66 67 Average Rating 40 | 4 6 7 13 14 55 66 65 63 On Entrance 29 | . 6 7 7 30 14 67 66 65 Avg Prop Armor Cover (%) 6 | . . . . 12 4 4 4 10 Naked Turns . | . . . . . . . . . Heaviest Build 72 | 14 55 55 72 72 56 28 28 31 Greatest Support 82 | 32 32 32 32 32 82 40 55 55 Greatest Overweight (x) 3 | . 1 1 2 3 3 . . 1 Average Overweight (x) . | . . 1 1 2 . . . . Largest Inventory Capacity 40 | 8 20 20 20 20 40 40 40 40 Average Capacity 32 | 7 16 20 20 20 39 40 40 40 Most Carried 40 | 6 8 8 20 16 40 40 40 40 Average Carried 22 | 2 5 8 14 13 27 39 39 37 Final Capacity 40 | 8 20 20 20 20 40 40 40 40 Final Carried 40 | 6 8 8 15 14 40 39 39 37 Class Distribution -------------------- 63% | Hauler-Mutant 36% | Mutant Dominant Class ---------------- Mutant | -10/Materials Mutant | -10/Mines Mutant | -10/Exiles Mutant | -9/Mines Hauler-Mutant | -8/Materials Hauler-Mutant | -8/Garrison Hauler-Mutant | -8/Materials Hauler-Mutant | -8/Garrison Resources | -11 -10 -10 -10 -9 -8 -8 -8 -8 ----------- Run | Yrd Mat Min Exi Min Mat Gar Mat Gar Matter Collected 1305 | 158 175 . . 40 622 100 49 161 Remotely . | . . . . . . . . . Salvage Created 2698 | . 321 . . 58 1598 172 49 500 Parts 159 | . 26 . . 5 74 10 2 42 Haulers Intercepted 4 | . . . . . 4 . . . Recyclers Shooed . | . . . . . . . . . Parts Field Recycled . | . . . . . . . . . Retrieved Matter . | . . . . . . . . . Parts Self-Destructed . | . . . . . . . . . Prevented . | . . . . . . . . . Parts Restored . | . . . . . . . . . Kills | -11 -10 -10 -10 -9 -8 -8 -8 -8 ------- Run | Yrd Mat Min Exi Min Mat Gar Mat Gar Combat Hostiles Destroyed 76 | . 10 . . 4 31 6 1 24 Melee 7 | . . . . . 7 . . . Guns 27 | . 8 . . . 15 . . 4 Cannons 17 | . . . . 4 6 3 1 3 AOE 22 | . 2 . . . . 3 . 17 Classes Destroyed 13 | . 4 . . . 7 . . 2 Worker 2 | . . . . . 2 . . . Builder 1 | . 1 . . . . . . . Hauler 4 | . . . . . 4 . . . Mechanic 1 | . . . . . 1 . . . Operator 2 | . 1 . . . 1 . . . Watcher 1 | . . . . . 1 . . . Swarmer 29 | . 3 . . 4 5 3 . 14 Grunt 27 | . 7 . . . 15 . 1 4 Brawler 1 | . . . . . . . . 1 Sentry 12 | . . . . . 8 3 . 1 Hunter 4 | . . . . . 2 . . 2 Programmer 2 | . . . . . . . . 2 Heavy 1 | . . . . . 1 . . . Best Kill Streak 8 | . 3 . . 2 5 4 1 8 Combat Bots Only 8 | . 3 . . 2 5 4 1 8 Max Kills in Single Turn 4 | . 1 . . 1 2 2 1 4 Gunslinging 1 | . . . . . 1 . . . Exploded 4 | . 1 . . . . 2 . 4 Melee 1 | . . . . . 1 . . . Uniques/NPCs Destroyed . | . . . . . . . . . Combat | -11 -10 -10 -10 -9 -8 -8 -8 -8 -------- Run | Yrd Mat Min Exi Min Mat Gar Mat Gar Hostile Shots Fired 453 | . 33 . 9 45 213 25 4 124 Missed 127 | . 9 . 4 14 53 7 2 38 Hits 326 | . 24 . 5 31 160 18 2 86 Projectile 326 | . 24 . 5 31 160 18 2 86 Critical Strikes 19 | . . . 3 1 8 1 1 5 Damage Taken 4902 | . 346 . 87 248 2685 241 30 1265 Core 744 | . 103 . 37 52 348 . . 204 Absorbed by Shields . | . . . . . . . . . Ignored by Resistances 15 | . . . . . . . . 15 Core Remaining (%) 61 | 100 . . . 23 . . . . Volleys Fired 177 | . 28 . 1 10 81 13 3 41 Largest 2 | . 2 . 1 2 2 2 2 2 Hottest 250 | . 90 . 250 120 125 99 88 126 Shots Fired 327 | . 55 . 1 20 161 22 6 62 Gun 225 | . 55 . . . 122 8 3 37 Cannon 87 | . . . 1 20 39 11 3 13 Launcher 15 | . . . . . . 3 . 12 Special . | . . . . . . . . . Kinetic 122 | . 14 . . . 65 8 3 32 Thermal 150 | . 28 . 1 20 96 . . 5 Explosive 15 | . . . . . . 3 . 12 Electromagnetic 40 | . 13 . . . . 11 3 13 Robot Hit Streak 27 | . 10 . 1 3 27 7 10 12 Robot Miss Streak 4 | . 4 . 3 4 4 1 1 3 Penetration Max . | . . . . . . . . . Secondary Targets 3 | . . . . . 3 . . . Max Gunslinging Chain 1 | . . . . . 1 . . . Shots Hit Robots 244 | . 27 . 1 7 151 14 4 40 Core Hits 113 | . 19 . . 4 53 6 2 29 Critical Kills 3 | . . . . . 3 . . . Critical Parts Destroyed 7 | . . . . . 7 . . . Critical Strikes 14 | . 1 . . . 12 . 1 . Burn 2 | . . . . . 2 . . . Destroy 1 | . . . . . 1 . . . Corrupt 2 | . 1 . . . . . 1 . Smash 9 | . . . . . 9 . . . Melee Attacks 42 | . . . . . 40 2 . . Impact 42 | . . . . . 40 2 . . Slashing . | . . . . . . . . . Piercing . | . . . . . . . . . Sneak Attacks 2 | . . . . . 2 . . . Combat Hostiles . | . . . . . . . . . Follow-up Attacks . | . . . . . . . . . Damage Inflicted 6943 | . 532 . 4 149 3649 544 104 1961 Guns 2794 | . 361 . . . 1836 33 51 513 Cannons 1205 | . . . . 149 544 235 53 224 Explosions 1675 | . 171 . 4 . . 276 . 1224 Melee 1265 | . . . . . 1265 . . . Ramming 4 | . . . . . 4 . . . Kinetic 1586 | . 60 . . . 972 33 51 470 Thermal 1931 | . 327 . 4 149 1408 . . 43 Explosive 1500 | . . . . . . 276 . 1224 Electromagnetic 657 | . 145 . . . . 235 53 224 Impact 1265 | . . . . . 1265 . . . Slashing . | . . . . . . . . . Piercing . | . . . . . . . . . Highest Corruption 10 | . . . . . 7 7 7 10 Average Corruption 7 | . . . . . 7 7 7 8 Corruption Purged . | . . . . . . . . . Corruption Blocked . | . . . . . . . . . Effects 44 | . . . . . 14 10 7 13 Message Errors 10 | . . . . . 2 2 2 4 Matter Fused 7 | . . . . . 1 2 2 2 Heat Flow Errors 5 | . . . . . 1 1 2 1 Energy Discharges 6 | . . . . . 4 1 . 1 Data Loss (minor) 10 | . . . . . 5 3 1 1 Data Loss (major) 1 | . . . . . . . . 1 Misfires 2 | . . . . . . . . 2 Alerts 2 | . . . . . 1 1 . . Weapon Failures 1 | . . . . . . . . 1 Overload Shots . | . . . . . . . . . Overflow Damage 513 | . 33 . . . 324 26 . 130 Projectiles 2 | . . . . . . . . 2 Explosions 187 | . 33 . . . . 26 . 128 Melee 324 | . . . . . 324 . . . Knockbacks 7 | . . . . . 7 . . . Impact 5 | . . . . . 5 . . . Kinetic . | . . . . . . . . . Secondary 2 | . . . . . 2 . . . Self-Inflicted Damage 123 | . 87 . . . . . . 36 Shots 4 | . 1 . . . . . . 3 Rammed 1 | . . . . . 1 . . . Targets Rammed 1 | . . . . . 1 . . . Kicked . | . . . . . . . . . Crushed . | . . . . . . . . . Highest Temperature 381 | . 160 . 210 265 381 252 170 359 Average Temperature 102 | . 49 . 109 140 115 79 78 126 Received Heat Transfer 1470 | . 102 . . . 981 63 36 288 Effects 4 | . . . 1 . 2 . . 1 Energy Bleed 1 | . . . . . 1 . . . Interference 3 | . . . 1 . 1 . . 1 Siege Activations . | . . . . . . . . . Martial Activations . | . . . . . . . . . Shielding Activations . | . . . . . . . . . Robots Disrupted . | . . . . . . . . . Combat Hostiles . | . . . . . . . . . Robots Corrupted 3 | . . . . . 3 . . . Combat Hostiles 3 | . . . . . 3 . . . Parts Fried 2 | . . . . . 1 1 . . Impact Corruptions 11 | . . . . . 11 . . . Robots Melted . | . . . . . . . . . Combat Hostiles . | . . . . . . . . . Parts Melted 7 | . . . . . 7 . . . Heat Transferred 3949 | . 744 . 60 296 2775 . . 74 Parts Sabotaged . | . . . . . . . . . Parts Stolen . | . . . . . . . . . Parts Stripped . | . . . . . . . . . Power Chain Reactions 2 | . 2 . . . . . . . Alert | -11 -10 -10 -10 -9 -8 -8 -8 -8 ------- Run | Yrd Mat Min Exi Min Mat Gar Mat Gar Maximum Alert Level 2 | . . . . . 1 2 1 2 Low Security (%) 73 | 100 100 100 . 100 73 48 38 8 Level 1 19 | . . . . . 26 40 61 14 Level 2 7 | . . . . . . 11 . 77 Level 3 . | . . . . . . . . . Level 4 . | . . . . . . . . . Level 5 . | . . . . . . . . . High Security . | . . . . . . . . . Max Security . | . . . . . . . . . Peak Influence 692 | . 180 51 . 65 299 462 238 692 Initial 224 | . . 51 . . . 190 224 122 Average 137 | . 82 18 . 12 126 262 209 425 Influence Increases 2618 | . 430 5 . 105 1132 272 34 640 Destroy 0b10 Robot/C 1640 | . 200 . . 80 740 120 20 480 Destroy 0b10 Robot/NC 60 | . 10 . . . 50 . . . Destroy Leader 282 | . 30 . . 10 212 . . 30 Allied During Kill 39 | . . . . . 39 . . . Successful Hack 122 | . 39 5 . . 36 . 14 28 Select Force Hacks 90 | . 60 . . . 30 . . . Disable Machine 60 | . 15 . . . 15 15 . 15 Anti-Garrison Action 100 | . . . . . . 100 . . Destroy Structure 120 | . 31 . . . 10 37 . 42 Partial Spotted 30 | . 30 . . . . . . . Lose Combat Pursuer 75 | . 15 . . 15 . . . 45 Influence Decreases 1926 | . 298 137 . 105 839 103 308 136 Entered New Map 488 | . . 81 . . . 103 238 66 Time Decay 1018 | . 268 56 . 85 539 . 70 . Lost Part 270 | . 30 . . 20 150 . . 70 Lost Ally 60 | . . . . . 60 . . . Purge Threat 90 | . . . . . 90 . . . Squads Dispatched 11 | . 6 . . . 5 . . . Investigation 6 | . 5 . . . 1 . . . Extermination . | . . . . . . . . . Reinforcement 5 | . 1 . . . 4 . . . Assault . | . . . . . . . . . Garrison . | . . . . . . . . . Intercept . | . . . . . . . . . Searches Triggered . | . . . . . . . . . Construction Impeded . | . . . . . . . . . Haulers Reinforced . | . . . . . . . . . Active Scanning Responses . | . . . . . . . . . Cargo Convoy Interrupts . | . . . . . . . . . Stealth | -11 -10 -10 -10 -9 -8 -8 -8 -8 --------- Run | Yrd Mat Min Exi Min Mat Gar Mat Gar Distress Signals 13 | . 3 . . . 10 . . . Communications Jammed . | . . . . . . . . . Distress Signals . | . . . . . . . . . Times Spotted 120 | . 18 . 7 5 52 6 3 29 Peak Tracking Total 9 | . 3 . 9 4 6 4 3 9 Tactical Retreats 3 | . 1 . . 1 . . . 1 Traps | -11 -10 -10 -10 -9 -8 -8 -8 -8 ------- Run | Yrd Mat Min Exi Min Mat Gar Mat Gar Traps Triggered 6 | . 2 . . . 1 2 . 1 Indirectly . | . . . . . . . . . Trap Hack Attempts . | . . . . . . . . . Triggered . | . . . . . . . . . Disarmed . | . . . . . . . . . Reprogrammed . | . . . . . . . . . Reused . | . . . . . . . . . Traps Extracted . | . . . . . . . . . Installed . | . . . . . . . . . Triggered . | . . . . . . . . . Machines | -11 -10 -10 -10 -9 -8 -8 -8 -8 ---------- Run | Yrd Mat Min Exi Min Mat Gar Mat Gar Machines Disabled 7 | . 1 . 2 . 1 2 . 1 Max in Single Turn 2 | . 1 . 2 . 1 1 . 1 Garrison Relay 1 | . . . . . . 1 . . Machines Repaired . | . . . . . . . . . Machines Dismantled . | . . . . . . . . . Machines Sabotaged . | . . . . . . . . . Overloaded Fab Kills . | . . . . . . . . . Hacking | -11 -10 -10 -10 -9 -8 -8 -8 -8 --------- Run | Yrd Mat Min Exi Min Mat Gar Mat Gar Machines Accessed 24 | . 8 1 1 . 9 1 2 2 Terminals 18 | . 6 1 . . 7 1 1 2 Fabricators . | . . . . . . . . . Repair Stations . | . . . . . . . . . Recycling Units 3 | . 2 . . . 1 . . . Scanalyzers . | . . . . . . . . . Garrison Access 2 | . . . . . 1 . 1 . Total Hacks 78 | . 34 3 1 . 31 2 4 3 Successful 42 | . 19 2 1 . 16 . 2 2 Failed 35 | . 15 1 . . 14 2 2 1 Catastrophic 2 | . 1 . . . 1 . . . Database Lockouts 1 | . . . . . 1 . . . Manual 48 | . 23 1 1 . 22 . 1 . Terminals 67 | . 29 3 . . 27 2 3 3 Fabricators . | . . . . . . . . . Repair Stations . | . . . . . . . . . Recycling Units 7 | . 5 . . . 2 . . . Scanalyzers . | . . . . . . . . . Garrison Access 3 | . . . . . 2 . 1 . Terminal Hacks 22 | . 10 2 1 . 7 . . 2 Robot Analysis 11 | . 7 1 . . 3 . . . Prototype ID Bank 1 | . . . . . 1 . . . Recycling Unit Index 1 | . 1 . . . . . . . Alert Level 1 | . . . . . 1 . . . Unreport Threat 1 | . . . . . 1 . . . Hauler Manifests 1 | . 1 . . . . . . . Zone Layout 3 | . 1 1 . . 1 . . . Garrison Registry 1 | . . . . . . . . 1 Patrol Navigation 1 | . . . . . . . . 1 Proto ID Catalog 1 | . . . 1 . . . . . Fabricator Hacks . | . . . . . . . . . Repair Station Hacks . | . . . . . . . . . Recycling Unit Hacks 3 | . 2 . . . 1 . . . Report Inventory 2 | . 1 . . . 1 . . . Retrieve Components 1 | . 1 . . . . . . . Scanalyzer . | . . . . . . . . . Garrison Access Hacks 2 | . . . . . 1 . 1 . Unlock Access 2 | . . . . . 1 . 1 . Unauthorized Hacks 15 | . 7 . . . 7 . 1 . Terminals 12 | . 5 . . . 6 . 1 . Assimilate 2 | . 1 . . . 1 . . . Botnet 7 | . 2 . . . 4 . 1 . Operators 2 | . 1 . . . 1 . . . Search 1 | . 1 . . . . . . . Fabricators . | . . . . . . . . . Repair Stations . | . . . . . . . . . Recycling Units 3 | . 2 . . . 1 . . . Tunnel 3 | . 2 . . . 1 . . . Scanalyzers . | . . . . . . . . . Garrison Access . | . . . . . . . . . Data Cores Recovered . | . . . . . . . . . Used . | . . . . . . . . . Hacking Detections 19 | . 5 1 . . 8 1 2 2 Full Trace Events 2 | . 1 . . . . 1 . . Feedback Events . | . . . . . . . . . Feedback Blocked . | . . . . . . . . . Robot Schematics Acquired . | . . . . . . . . . Robots Built . | . . . . . . . . . Authchips . | . . . . . . . . . Time . | . . . . . . . . . Total Robot Build Rating . | . . . . . . . . . Part Schematics Acquired . | . . . . . . . . . Parts Built . | . . . . . . . . . Authchips . | . . . . . . . . . Time . | . . . . . . . . . Total Part Build Rating . | . . . . . . . . . Part Studies Acquired . | . . . . . . . . . Parts Repaired . | . . . . . . . . . Time . | . . . . . . . . . Parts Recycled . | . . . . . . . . . Recycled Matter . | . . . . . . . . . Retrieved Matter . | . . . . . . . . . Retrieved Components 7 | . 7 . . . . . . . Parts Scanalyzed . | . . . . . . . . . Part Schematics Acquired . | . . . . . . . . . Parts Damaged . | . . . . . . . . . Bothacking | -11 -10 -10 -10 -9 -8 -8 -8 -8 ------------ Run | Yrd Mat Min Exi Min Mat Gar Mat Gar Used RIF Installer 1 | . . . . . . 1 . . Robots Hacked . | . . . . . . . . . Non-combat . | . . . . . . . . . Combat . | . . . . . . . . . Robot Hacks Applied . | . . . . . . . . . Relay Couplers Released 3 | . . . . . . 3 . . Machine Destruction 3 | . . . . . . 3 . . Fabnet Peak Effective % . | . . . . . . . . . Robots Rewired . | . . . . . . . . . Allies Hacked . | . . . . . . . . . Hacks Repelled . | . . . . . . . . . Allies | -11 -10 -10 -10 -9 -8 -8 -8 -8 -------- Run | Yrd Mat Min Exi Min Mat Gar Mat Gar Total Allies 3 | . . . . 3 . . . . Largest Group 3 | . . . . 3 3 . . . Highest-Rated Group 40 | . . . . 40 40 . . . Highest-Rated Ally 16 | . . . . 16 16 . . . Total Orders . | . . . . . . . . . Ally Attacks 49 | . . . . . 49 . . . Total Damage 392 | . . . . . 392 . . . Kills 7 | . . . . . 7 . . . Allies Corrupted . | . . . . . . . . . Allies Melted . | . . . . . . . . . Intel | -11 -10 -10 -10 -9 -8 -8 -8 -8 ------- Run | Yrd Mat Min Exi Min Mat Gar Mat Gar Active Infowar (turns) 630 | . . . . . 630 . . . Sensors 630 | . . . . . 630 . . . Robot Analysis Total 11 | . 7 1 . . 3 . . . Derelict Logs Recovered 1 | . . . . 1 . . . . Drone Launches . | . . . . . . . . . Drone Recoveries . | . . . . . . . . . Exploration | -11 -10 -10 -10 -9 -8 -8 -8 -8 ------------- Run | Yrd Mat Min Exi Min Mat Gar Mat Gar Turns Passed 4657 | 56 600 179 367 479 2213 233 159 371 Spaces Moved 2802 | 43 447 154 302 317 1068 150 121 200 Core 3 | 3 . . . . . . . . Treads 898 | . . . . . 886 . . 12 Legs 561 | . . . . . 102 150 121 188 Wheels 1340 | 40 447 154 302 317 80 . . . Hover . | . . . . . . . . . Flight . | . . . . . . . . . Fastest Speed 50 | 50 100 115 115 115 100 120 120 120 Average Speed 134 | 96 111 115 116 138 157 120 120 121 Slowest Speed 240 | 100 115 115 130 145 240 120 120 190 Overloaded Moves . | . . . . . . . . . Propulsion Burnouts . | . . . . . . . . . Robots Hopped . | . . . . . . . . . Potential Cave-ins 2 | . . . . . 2 . . . Cave-ins Triggered . | . . . . . . . . . Exploration Rate (%) 42 | 3 78 29 50 67 86 19 14 34 Regions Visited 8 Branch Regions 3 Pre-discovered Areas 3 | . 2 . . . 1 . . . Known Exits Taken 2 | . . . . . 1 . 1 . Unknown Exits Taken 5 | 1 1 1 1 1 . . . . Scrap Searched 1 | . . . . 1 . . . . Spaces Dug 24 | . . . . . 4 4 . 16 Terrain Destroyed 98 | . 35 . 6 . 6 13 . 38 Melee 4 | . . . . . 4 . . . Projectile 2 | . . . . . 2 . . . AOE 92 | . 35 . 6 . . 13 . 38 Terrain Rammed . | . . . . . . . . . Walls Destroyed . | . . . . . . . . . Machines Disabled . | . . . . . . . . . Actions | -11 -10 -10 -10 -9 -8 -8 -8 -8 --------- Run | Yrd Mat Min Exi Min Mat Gar Mat Gar Total 3281 | 54 493 156 320 337 1348 177 130 266 Wait 68 | . 12 3 . 5 48 . . . Move 2796 | 42 446 153 301 316 1068 149 121 200 Hop . | . . . . . . . . . Pick Up 83 | 6 3 . 10 1 50 2 3 8 Fast Attach 36 | 6 3 . . . 23 . 1 3 Attach 19 | . 1 . 1 4 9 . . 4 Detach 1 | . . . . 1 . . . . Swap 27 | . . . . . 13 5 . 9 Drop 27 | . . . 7 . 15 2 2 1 Fire 177 | . 28 . 1 10 81 13 3 41 Melee 42 | . . . . . 40 2 . . Ram . | . . . . . . . . . Kick . | . . . . . . . . . Crush 1 | . . . . . 1 . . . Escape Stasis 4 | . . . . . . 4 . . Rewire . | . . . . . . . . . Trap . | . . . . . . . . . Miscellaneous . | . . . . . . . . . Route ------- -11/Scrapyard -10/Materials (discovered 5 exits: [*Mat x3] / *Min / [*Sub]) -10/Mines (discovered 2 exits: [Mat] / *Exi) -10/Exiles -9/Mines -8/Materials (discovered 2 exits: [*Fac] / Gar) -8/Garrison -8/Materials -8/Garrison (discovered 3 exits: [Fac x3]) History --------- Turn | Location | Event 25 | -11/Scrapyard | Discovered new exit (range 16) 57 | -11/Scrapyard | Entered Materials 58 | -10/Materials | Met a group of wandering Federalists 126 | -10/Materials | Discovered new exit (range 16) 276 | -10/Materials | Discovered new exit (range 5) 310 | -10/Materials | Discovered new exit (range 16) 317 | -10/Materials | Build established: Mutant 389 | -10/Materials | Discovered new exit (range 10) 472 | -10/Materials | Discovered new exit (range 14) 657 | -10/Materials | Entered Mines 671 | -10/Mines | Met a Derelict bent on vengeance 729 | -10/Mines | Discovered new exit (range 12) 831 | -10/Mines | Deemed a non-threat by the Exiles lab entrance 832 | -10/Mines | Discovered new exit (range 5) 836 | -10/Mines | Entered Exiles 864 | -10/Exiles | Met 8R-AWN 881 | -10/Exiles | Discovered new exit (range 15) 912 | -10/Exiles | Met EX-HEX 950 | -10/Exiles | Met EX-BIN 967 | -10/Exiles | Aligned with FarCom system 968 | -10/Exiles | Given EX-Vault access code 996 | -10/Exiles | Opened EX-Vault 1005 | -10/Exiles | Found Firepult 1010 | -10/Exiles | Found AWS/Thermal 1016 | -10/Exiles | Found Lightpack 2.0 1040 | -10/Exiles | Warned to stay clear of 0b10 Research branches 1074 | -10/Exiles | Met EX-DEC 1172 | -10/Exiles | Attacked by the Exiles 1184 | -10/Exiles | Core integrity fell below 50% 1203 | -10/Exiles | Stole three prototypes: Firepult, Lightpack 2.0, AWS/Thermal 1203 | -10/Exiles | Entered Mines 1369 | -9/Mines | Learned Materials stockpile data 1482 | -9/Mines | A weapon hastily lodged in a ceiling crevice suddenly fell to the ground 1651 | -9/Mines | Discovered new exit (range 9) 1667 | -9/Mines | Assisted by bots powering up and referring to "LRC-V3" 1682 | -9/Mines | Entered Materials 1682 | -8/Materials | Accompanied by 3 allies 1682 | -8/Materials | Evolved 4 slots: Propulsion x2, Utility x2 2001 | -8/Materials | Build established: Hauler-Mutant 2277 | -8/Materials | Central database locked down 2398 | -8/Materials | Lost 4 parts (2n2w) 2420 | -8/Materials | Found Prototype Device 3113 | -8/Materials | Discovered new exit (range 4) 3363 | -8/Materials | Core integrity fell below 50% 3895 | -8/Materials | Identified exit to Garrison 3895 | -8/Materials | Entered Garrison 3942 | -8/Garrison | Installed Relay Interface Framework 4048 | -8/Garrison | Garrison Relay disabled 4101 | -8/Garrison | Triggered checkpoint 4103 | -8/Garrison | Discovered new exit (range 13) 4128 | -8/Garrison | Entered Materials 4287 | -8/Materials | Identified exit to Garrison 4287 | -8/Materials | Entered Garrison 4317 | -8/Garrison | Triggered checkpoint 4353 | -8/Garrison | Triggered checkpoint 4392 | -8/Garrison | Destroyed 7 combat bots 4420 | -8/Garrison | Discovered new exit (range 51) 4420 | -8/Garrison | Discovered new exit (range 59) 4420 | -8/Garrison | Discovered new exit (range 36) 4457 | -8/Garrison | System corruption reached 10% 4487 | -8/Garrison | Core integrity fell below 20% 4526 | -8/Garrison | Lost 6 parts (4n2w) 4637 | -8/Garrison | Triggered checkpoint 4658 | -8/Garrison | Destroyed by G-47 Trooper with Particle Gun Last Messages --------------- AWS/Thermal swallowed by quantum anomaly within Lightpack 2.0. 04613_ System corrupted: FCS attempts to trigger Minigun. 04613_ System corrupted: Minigun misfires. Mic. Nuclear Core swallowed by quantum anomaly within Lightpack 2.0. 04637_ Beams of light sweep through the air. An alarm sounds. 04638_ G-47 Trooper destroyed. 04642_ C-30 ARC bursts open, deploying its payload. 04642_ B-36 Bruiser unfolds itself. 04642_ G-47 Trooper unfolds itself. 04644_ System corrupted: Imp. Grenade Launcher failed to launch. 04645_ Deuterium Engine destroyed. 04646_ G-47 Trooper destroyed. 04647_ System corrupted: Component data lost. Garrison Door activated. 04649_ B-36 Bruiser destroyed. 04649_ G-47 Trooper destroyed. 04655_ S-10 Pest destroyed. 04655_ Destroyed Lgt. Ion Engine. 04655_ Destroyed Flight Unit. 04655_ S-10 Pest destroyed. Map ----- +----------------------------------------------------+ | ??????# #????????????????????????????# ## #????# | | ??????# #?????????????????############ ## #????# | | ??????# #?????????????????# ## #????# | | ??????# #?????????????????# ## ###### | | ??????# #?????????????????# ###+##### ## + | | ??????# #?????????????????# #?# #???# ######### | | ??????# #?????????????????# ### ##### ######### | | ??????# #?????????????????# + + | | ??????# #???????????####### ##### ### ######### | | ??????# #???????????# ## #???# #?# #???????? | | ??????# #??????###### ## ##??# #?# #???????? | | ####### ######## ####+### #???????? | | +^^ g #???????? | | +^^ #???????? | | #################% g ##^^^###########???????? | | ??????????????### ## ###???????????????? | | ??????????????# " % [#???????????????? | | ??????????????# " = %######??????????? | | ??????????????# " % % #??????????? | | ??????????????# g s=#### #??????????? | | ??????????????### ##g ## ### ## #??????????? | | ????????????????# ## ## ##+###????????? | | ????????????????# g #????????? | | ????????????????# #????????? | | ????????????????# ## #????????? | | ????????????????# ## = @## ####???# #????????? | | ????????????????# ## %%## ######## #####????? | | ????????????????# ######## + + + #????? | | ????????????????# #??????# ######## ### #????? | | ????????????????# #??????# #??????# #?# #????? | | ????????????????# #?????## #??????# #?# #????? | | ????????????????# #?????#T #??????# #?# #????? | | ################# #?????## ######## ###+###### | | ! ! #??????# ^^ | | *% [! [![ #??????# ^^ | | [! [ [ #????### ##### ########+###### | | ########"+######## ##????# #??# ######## #????? | | ???????# #??????# ##????# #??# ## #????? | | ???????# #??????# "#????# ##??# ## #####+###??? | | ???????# #??????# T#????## #??# ## #???# #"#??? | | ???????# #??????#""#????######??# ## #???# "#??? | | ???????# #??????####????????????# ## #???# "#??? | | ???????# #??????????????????????# ## #???# "#??? | | ???????# #??????????????????????# ##+##### #"#??? | | ???????# #??????????????????????# ###??? | | ???????# ##???###???????????????###""""########## | | ???????# #???# #?????????????????# ## | | ???????# ######+#?????????????###?##+#### | | ######## #?????????????# #??# #??# | | + + # ###### #?????????#####+#??# #??# | +----------------------------------------------------+ Best States ------------- Heat Dissipation 45 Energy Generation 15 Energy Capacity 275 Matter Stores 300 Matter Capacity 300 Sight Range 16 Robot Scan Range 15 Terrain Scan Density 10 Armor Coverage 225 Resistance: EM 15 Evasion (%) 55 Recoil Reduction 4 Item Schematics ----------------- None Robot Schematics ------------------ None Fabricated ------------ Nothing Repaired ---------- Nothing Studied --------- None Alien Tech Used ----------------- None Achievements -------------- I Know It's In Here Somewhere Sixth Sense Challenges ------------ None Game ------ Seed BackupTitaniumScreen Manual? 0 Play Time 00:42:59 Cumulative 187.8 hours Start 2025.11.01 @ 19:14:34 End 2025.11.01 @ 20:01:07 Sessions 1 Manual Loads 0 Difficulty Rogue Special Mode None Game No. 197 Rogue 193 Adventurer 3 Explorer 1 Win Type - Total 1 Types 1/0/0/0/0/0/0/0/0/0 Lore% 67 Gallery% 70 Achievement% 48 Wizard Run 0 Options --------- Layout 0 ASCII 0 Keyboard 0 Movement Mouse Keybinds 0 Fullscreen 2 Font 18/SmallcapsGlow Map View 76x50 Zoom Use 0% Tactical HUD 1 Map Filters NONE Filters NONE Steam 1 RUN: 5c467b5e-8bb2-41b4-b26a-b0bf8ab54f84